Cogmind - Beta 13 @@@ ROGUE MODE // 2024.03.30 @ 23:25:29 Player: Kiastell Result: Destroyed by G-34 Mercenary with Small Laser Performance ------------- Evolutions (0) 0 Regions Visited (1) 200 Robots Destroyed (8) 40 Value Destroyed (132) 132 Prototype IDs (0) 0 Alien Tech Used (0) 0 Bonus (0) 0 TOTAL SCORE: 372 Bonus ------- None Cogmind --------- Core Integrity 0/250 Matter 122/300 Energy 85/100 System Corruption 0% Temperature Cool (6) Movement Rolling (100) Location -10/Materials Parts ------- > --- POWER (1) -------- (None) > --- PROPULSION (2) --- Compact Wheel > --- UTILITY (2) ------ Medium Storage Unit Targeting Computer > --- WEAPON (2) ------- Medium Laser > --- INVENTORY (10) --- Medium Matter Pod (0) Medium Matter Pod (0) Sensor Array Improved Terrain Scanner ECM Suite Medium Laser Grenade Launcher Peak State ------------ > --- POWER ------------ Light Ion Engine > --- PROPULSION ------- Aluminum Leg Aluminum Leg > --- UTILITY ---------- Sensor Array Improved Terrain Scanner > --- WEAPON ----------- Light Assault Rifle Grenade Launcher > --- INVENTORY -------- Light Ion Engine Light Ion Engine Aluminum Leg Small Laser Light Assault Rifle [Rating: 9] Favorites ----------- Power Light Ion Engine Engine Light Ion Engine Propulsion Aluminum Leg Leg Aluminum Leg Wheel Wheel Utility Targeting Computer Device Sensor Array Storage Medium Storage Unit Processor Targeting Computer Weapon Light Assault Rifle Energy Gun Medium Laser Ballistic Gun Light Assault Rifle Launcher Grenade Launcher Special Weapon Mining Laser Build | -11 -10 ------- Run | Yrd Mat Slots Evolved . | . . Power . | . . Propulsion . | . . Utility . | . . Weapon . | . . Parts Attached 25 | 7 18 Power 3 | 1 2 Engine 3 | 1 2 Core . | . . Reactor . | . . Propulsion 5 | 4 1 Treads . | . . Leg 2 | 2 . Wheel 3 | 2 1 Hover . | . . Flight . | . . Utility 7 | . 7 Device 3 | . 3 Storage 2 | . 2 Processor 2 | . 2 Hackware . | . . Protection . | . . Artifact . | . . Weapon 10 | 2 8 Energy Gun 3 | 1 2 Energy Cannon . | . . Ballistic Gun 3 | 1 2 Ballistic Cannon . | . . Launcher 1 | . 1 Special Weapon 3 | . 3 Impact Weapon . | . . Slashing Weapon . | . . Piercing Weapon . | . . Special Melee Weapon . | . . Unidentified Prototypes . | . . Parts Lost 7 | . 7 Power 2 | . 2 Propulsion 2 | . 2 Utility . | . . Weapon 3 | . 3 Highest Loss Streak 7 | . 7 To Critical Strikes . | . . Average Slot Usage (%) 88 | . 88 Engine 13 | . 13 Leg 27 | . 27 Device 5 | . 5 Storage 3 | . 3 Processor 9 | . 9 Energy Gun 4 | . 4 Ballistic Gun 13 | . 13 Launcher 7 | . 7 Special Weapon 1 | . 1 Naked Turns . | . . Heaviest Build 27 | 6 27 Greatest Support 20 | 20 20 Greatest Overweight (x) 1 | . 1 Average Overweight (x) . | . . Largest Inventory Capacity 15 | 5 15 Average Capacity 6 | 5 6 Most Carried 9 | 5 9 Average Carried 4 | 2 4 Final Capacity 10 | 5 10 Final Carried 7 | 4 7 Class Distribution -------------------- 100% | Mutant Dominant Class ---------------- Mutant | -10/Materials Resources | -11 -10 ----------- Run | Yrd Mat Matter Collected 296 | 276 20 Remotely . | . . Salvage Created 145 | 44 101 Parts 15 | 3 12 Haulers Intercepted . | . . Recyclers Shooed . | . . Parts Field Recycled . | . . Retrieved Matter . | . . Parts Self-Destructed . | . . Prevented . | . . Kills | -11 -10 ------- Run | Yrd Mat Combat Hostiles Destroyed 5 | 1 4 Guns 2 | 1 1 AOE 3 | . 3 Classes Destroyed 5 | 1 4 Worker 1 | . 1 Tunneler 1 | . 1 Operator 1 | . 1 Swarmer 3 | . 3 Grunt 2 | 1 1 Best Kill Streak 4 | 1 4 Combat Bots Only 3 | 1 3 Max Kills in Single Turn 2 | 1 2 Gunslinging . | . . Exploded 2 | . 2 Melee . | . . Uniques/NPCs Destroyed . | . . Combat | -11 -10 -------- Run | Yrd Mat Hostile Shots Fired 84 | 4 80 Missed 19 | 1 18 Damage Taken 789 | 32 757 Core 255 | . 255 Absorbed by Shields . | . . Core Remaining (%) 100 | 100 . Volleys Fired 31 | 6 25 Largest 2 | 2 2 Hottest 120 | 70 120 Shots Fired 47 | 12 35 Gun 38 | 12 26 Cannon . | . . Launcher 3 | . 3 Special 6 | . 6 Kinetic 29 | 6 23 Thermal 13 | 6 7 Explosive 3 | . 3 Electromagnetic 2 | . 2 Robot Hit Streak 7 | 6 7 Robot Miss Streak 6 | 2 6 Penetration Max . | . . Secondary Targets . | . . Shots Hit Robots 22 | 8 14 Core Hits 15 | 2 13 Critical Kills . | . . Critical Parts Destroyed 1 | . 1 Critical Strikes 2 | 1 1 Burn 1 | 1 . Destroy 1 | . 1 Melee Attacks . | . . Impact . | . . Slashing . | . . Piercing . | . . Sneak Attacks . | . . Combat Hostiles . | . . Follow-up Attacks . | . . Damage Inflicted 493 | 82 411 Guns 214 | 82 132 Cannons . | . . Explosions 231 | . 231 Melee . | . . Ramming . | . . Kinetic 150 | 30 120 Thermal 100 | 52 48 Explosive 231 | . 231 Electromagnetic 12 | . 12 Impact . | . . Slashing . | . . Piercing . | . . Highest Corruption . | . . Average Corruption . | . . Corruption Purged . | . . Corruption Blocked . | . . Overload Shots . | . . Overflow Damage 13 | . 13 Projectiles . | . . Explosions 13 | . 13 Melee . | . . Knockbacks . | . . Impact . | . . Kinetic . | . . Secondary . | . . Self-Inflicted Damage 9 | . 9 Shots 1 | . 1 Rammed . | . . Targets Rammed . | . . Kicked . | . . Crushed . | . . Highest Temperature 174 | 78 174 Average Temperature 58 | 37 66 Received Heat Transfer 423 | 18 405 Siege Activations . | . . Robots Corrupted . | . . Combat Hostiles . | . . Parts Fried . | . . Impact Corruptions . | . . Robots Melted . | . . Combat Hostiles . | . . Parts Melted 2 | 2 . Heat Transferred 322 | 222 100 Parts Sabotaged . | . . Parts Stolen . | . . Parts Stripped . | . . Power Chain Reactions . | . . Alert | -11 -10 ------- Run | Yrd Mat Peak Influence 140 | 20 140 Initial 13 | . 13 Average 35 | 3 40 Maximum Alert Level . | . . Low Security (%) 100 | 100 100 Level 1 . | . . Level 2 . | . . Level 3 . | . . Level 4 . | . . Level 5 . | . . High Security . | . . Max Security . | . . Squads Dispatched 2 | . 2 Investigation 1 | . 1 Extermination . | . . Reinforcement 1 | . 1 Assault . | . . Garrison . | . . Intercept . | . . Searches Triggered . | . . Construction Impeded . | . . Haulers Reinforced . | . . Active Scanning Responses . | . . Cargo Convoy Interrupts . | . . Stealth | -11 -10 --------- Run | Yrd Mat Distress Signals . | . . Communications Jammed . | . . Distress Signals . | . . Times Spotted 14 | 1 13 Peak Tracking Total 6 | 1 6 Tactical Retreats . | . . Traps | -11 -10 ------- Run | Yrd Mat Traps Triggered 2 | . 2 Indirectly . | . . Trap Hack Attempts . | . . Triggered . | . . Disarmed . | . . Reprogrammed . | . . Reused . | . . Traps Extracted . | . . Installed . | . . Triggered . | . . Machines | -11 -10 ---------- Run | Yrd Mat Machines Disabled 1 | . 1 Max in Single Turn 1 | . 1 Machines Repaired . | . . Machines Dismantled . | . . Machines Sabotaged . | . . Overloaded Fab Kills . | . . Hacking | -11 -10 --------- Run | Yrd Mat Machines Accessed 5 | . 5 Terminals 3 | . 3 Fabricators . | . . Repair Stations . | . . Recycling Units 2 | . 2 Scanalyzers . | . . Garrison Access . | . . Total Hacks 16 | . 16 Successful 11 | . 11 Failed 5 | . 5 Catastrophic 1 | . 1 Database Lockouts . | . . Manual . | . . Terminals 13 | . 13 Fabricators . | . . Repair Stations . | . . Recycling Units 3 | . 3 Scanalyzers . | . . Garrison Access . | . . Terminal Hacks 10 | . 10 Record 5 | . 5 Alert Level 1 | . 1 Unreport Threat 1 | . 1 Locate Traps 1 | . 1 Hauler Manifests 1 | . 1 Zone Layout 1 | . 1 Fabricator Hacks . | . . Repair Station Hacks . | . . Recycling Unit Hacks 1 | . 1 Report Inventory 1 | . 1 Scanalyzer . | . . Garrison Access Hacks . | . . Unauthorized Hacks . | . . Terminals . | . . Fabricators . | . . Repair Stations . | . . Recycling Units . | . . Scanalyzers . | . . Garrison Access . | . . Data Cores Recovered 1 | . 1 Used 1 | . 1 Hacking Detections 3 | . 3 Full Trace Events 1 | . 1 Feedback Events . | . . Feedback Blocked . | . . Robot Schematics Acquired . | . . Robots Built . | . . Authchips . | . . Time . | . . Total Robot Build Rating . | . . Part Schematics Acquired . | . . Parts Built . | . . Authchips . | . . Time . | . . Total Part Build Rating . | . . Parts Repaired . | . . Time . | . . Parts Recycled . | . . Recycled Matter . | . . Retrieved Matter . | . . Retrieved Components . | . . Parts Scanalyzed . | . . Part Schematics Acquired . | . . Parts Damaged . | . . Bothacking | -11 -10 ------------ Run | Yrd Mat Used RIF Installer . | . . Robots Hacked . | . . Non-combat . | . . Combat . | . . Robot Hacks Applied . | . . Relay Couplers Released . | . . Fabnet Peak Effective % . | . . Robots Rewired . | . . Allies Hacked . | . . Hacks Repelled . | . . Allies | -11 -10 -------- Run | Yrd Mat Total Allies . | . . Largest Group . | . . Highest-Rated Group . | . . Highest-Rated Ally . | . . Total Orders . | . . Ally Attacks . | . . Total Damage . | . . Kills . | . . Allies Corrupted . | . . Allies Melted . | . . Intel | -11 -10 ------- Run | Yrd Mat Robot Analysis Total . | . . Derelict Logs Recovered . | . . Drone Launches . | . . Drone Recoveries . | . . Exploration | -11 -10 ------------- Run | Yrd Mat Turns Passed 807 | 118 689 Spaces Moved 538 | 78 460 Core 18 | 18 . Treads . | . . Legs 504 | 53 451 Wheels 16 | 7 9 Hover . | . . Flight . | . . Fastest Speed 50 | 50 100 Average Speed 118 | 100 121 Slowest Speed 190 | 120 190 Overloaded Moves . | . . Propulsion Burnouts . | . . Robots Hopped . | . . Cave-ins Triggered . | . . Exploration Rate (%) 29 | 5 54 Regions Visited 1 Branch Regions . Pre-discovered Areas . | . . Known Exits Taken . | . . Unknown Exits Taken 1 | 1 . Scrap Searched . | . . Spaces Dug . | . . Terrain Destroyed 19 | . 19 Melee . | . . Projectile . | . . AOE 19 | . 19 Terrain Rammed . | . . Walls Destroyed . | . . Machines Disabled . | . . Actions | -11 -10 --------- Run | Yrd Mat Total 659 | 107 552 Wait 17 | 4 13 Move 537 | 77 460 Hop . | . . Pick Up 32 | 11 21 Fast Attach 2 | . 2 Attach 15 | 5 10 Detach 1 | . 1 Swap 8 | 2 6 Drop 16 | 2 14 Fire 31 | 6 25 Melee . | . . Ram . | . . Kick . | . . Crush . | . . Escape Stasis . | . . Rewire . | . . Trap . | . . Miscellaneous . | . . Route ------- -11/Scrapyard -10/Materials (discovered 1 exit: [*Min]) History --------- Turn | Location | Event 2 | -11/Scrapyard | Met Revision 17 89 | -11/Scrapyard | Discovered new exit (range 8) 119 | -11/Scrapyard | Entered Materials 306 | -10/Materials | Build established: Mutant 570 | -10/Materials | Discovered new exit (range 9) 771 | -10/Materials | Core integrity fell below 50% 800 | -10/Materials | Core integrity fell below 20% 808 | -10/Materials | Destroyed by G-34 Mercenary with Small Laser Last Messages --------------- Pressure Siphon disabled. U-05 Engineer lays Concrete. Mining Laser destroyed. Lgt. Ion Engine destroyed. G-47 Trooper suffers critical hit (Destroy). Destroyed Aluminum Leg. K-01 Serf collects debris. Mining Laser destroyed. K-01 Serf collects debris. Aluminum Leg destroyed. K-01 Serf collects debris. ALERT: Hostiles spotted, dispatching reinforcements to Terminal M002. [Achievement: Uninvited Guest] K-01 Serf collects debris. Lgt. Assault Rifle destroyed. Aluminum Leg destroyed. Lgt. Ion Engine destroyed. Acquired Med. Laser. [Achievement: First Step to Greatness] Map ----- +----------------------------------------------------+ | | | | | | | | | | | | | | | | | | | | | | | ?????????????????????????????????????????????????? | | ?????????????????????????????????????????????????? | | ?????????????????????????????????????????????????? | | ?????????????????????????????????????????????????? | | ?????????????????????????????????????????????????? | | ?????????????????????????????????????????????????? | | ?????????????????????????????????????????????????? | | ?????????????????????????????????????????????????? | | ????????????????????????###+####+#####???????????? | | ????????????????????????# #???????????? | | ??????????????#?????????# #???????????? | | ??????????????# ????????# ????????????? | | ??????????????# ????????# #???????????????? | | ??????????????#/????#+#?# #???????????????? | | ??????????????# ##### ###@ #???????????????? | | ??????######### #???????????????? | | ??????? #???????????????? | | ??????? ! ! #???????????????? | | ??????? ! ! #???????????????? | | ??????? !!! ## #???????????????? | | ??????? #??#???????????????? | | ??????? = #??????????????????? | | ????????####+## [%"""" """"g #??????????????????? | | ??????????????# %""" """" #??????????????????? | | ??????????????# %"""gg"""" #??????????????????? | | ??????????????# #??????????????????? | | ????????????" / + ???????????? | | ?????????? # """" """" # """ ?????????????? | | ?????????? ???# """" """" #??????????????????? | | ??????????????## """" """" #??????????????????? | | ???????????????# #??????????????????? | | ???????????????# #??????????????????? | | ???????????????# #????????????????? | | ??????????????## ####### #?????????####+### | | ??????????????# "###############?????# | | ??????????????# ""# #?????#"" """ | | ??????????????# # """ #?????#"T """ | | ??????????????# < ""# """ #?????#"" """ | | ???##?????????# # ""T"" """ #?????# | +----------------------------------------------------+ Best States ------------- Heat Dissipation 25 Energy Generation 10 Energy Capacity 125 Matter Stores 300 Matter Capacity 300 Sight Range 16 Robot Scan Range 14 Terrain Scan Range 16 Terrain Scan Density 10 Evasion (%) 55 Targeting Accuracy 10 Item Schematics ----------------- None Robot Schematics ------------------ None Fabricated ------------ Nothing Alien Tech Used ----------------- None Achievements -------------- Dynamic Key Everything Is Under Control First Step to Greatness Shopping List Storm Trooper Uninvited Guest Challenges ------------ None Game ------ Seed BeamTiamatRedirector Manual? 0 Play Time 00:39:56 Cumulative 0.6 hours Start 2024.03.30 @ 22:39:38 End 2024.03.30 @ 23:25:29 Sessions 1 Manual Loads 0 Difficulty Rogue Special Mode None Game No. 1 Rogue 1 Adventurer 0 Explorer 0 Win Type - Total 0 Types 0/0/0/0/0/0/0/0/0 Lore% 0 Gallery% 1 Achievement% 2 Wizard Run 0 Options --------- Layout 1 ASCII 0 Keyboard 0 Movement Arrows Keybinds 0 Fullscreen 1 Font 24/Terminus Map View 50x35 Zoom Use 15% Tactical HUD 0 Map Filters NONE Filters NONE Steam 1 RUN: e11b2072-fc69-4973-932e-2455ec96680c